bitfinex/quotes_SOLUSD_20250612
["timestamp","ask_amount","ask_price","bid_price","bid_amount"]
[1749754071928,6.36658814,157.07,157.05,56.84197553]
[1749754072347,51.46219704,157.09,157.05,56.84197553]
[1749754073247,22.28022151,157.09,157.05,56.84197553]
[1749754074157,29.18197553,157.06,156.99,15.88663942]
[1749754074363,29.18197553,157.06,156.97,0.8567127]
[1749754074364,29.18197553,157.03,156.97,0.8567127]
[1749754074657,1.5879,157.08,157.0,29.18197553]
[1749754074948,1.5879,157.08,157.01,56.86197553]
[1749754075157,29.18197553,157.05,157.01,27.68]
[1749754075738,22.29015411,157.02,156.97,0.8567127]
[1749754075934,22.29015411,157.02,156.98,56.88197553]
[1749754076137,51.47212964,157.02,156.97,0.8567127]
[1749754076332,22.29015411,157.02,156.97,0.8567127]
[1749754076558,29.18197553,156.98,156.97,0.8567127]
[1749754076929,29.18197553,156.98,156.97,28.5367127]
[1749754077857,35.55221377,156.98,156.97,28.5367127]
[1749754078152,6.37023824,156.98,156.97,28.5367127]
[1749754078769,6.37023824,156.98,156.97,57.71868823]
[1749754079066,6.36902108,157.01,156.97,57.71868823]
[1749754079244,26.0,157.04,157.0,29.18197553]
[1749754079245,6.36780438,157.04,157.0,29.18197553]
[1749754079444,6.36780438,157.04,157.01,27.66]
[1749754079638,35.54977991,157.04,157.01,27.66]
[1749754079835,6.36658814,157.07,157.01,27.66]
[1749754080041,35.54856367,157.07,157.03,29.18197553]
[1749754080248,35.54856367,157.07,157.04,27.66]
[1749754080538,51.46503403,157.07,157.04,27.66]
[1749754080750,29.18197553,157.06,157.04,27.66]
[1749754081156,29.18197553,157.05,157.04,27.66]
[1749754081534,22.2830585,157.07,157.04,27.66]
[1749754081730,29.18197553,157.05,156.98,30.82027553]
[1749754082053,6.36861546,157.02,156.99,56.84197553]
[1749754084064,22.28881172,157.03,157.0,29.18197553]
[1749754085039,6.36739891,157.05,156.99,27.66]
[1749754085232,6.36739891,157.05,157.01,29.18197553]
[1749754085430,29.18197553,157.04,157.02,27.64]
[1749754085650,6.36739891,157.05,156.97,7.3704127]
[1749754085651,22.2858962,157.05,157.03,27.64]
[1749754085858,29.18197553,157.04,157.03,27.64]
[1749754086159,35.54977991,157.04,157.03,27.64]
[1749754087955,22.28022151,157.09,157.03,27.64]
[1749754088265,29.18197553,157.05,157.03,27.64]
[1749754089338,80.1091094,157.09,157.03,27.64]
[1749754089545,29.18197553,157.05,157.03,27.64]
[1749754089743,80.1091094,157.09,157.03,27.64]
[1749754089938,29.18197553,157.05,157.03,27.64]
[1749754090157,6.36780438,157.04,157.03,27.64]
[1749754090746,29.18197553,157.06,157.03,27.64]
[1749754090747,6.3669935,157.06,157.03,27.64]
[1749754091156,6.3669935,157.06,157.04,27.64]
[1749754091667,25.82656168,157.06,157.04,27.64]
[1749754091872,6.3669935,157.06,157.04,27.64]
[1749754092670,6.3669935,157.06,157.05,19.45956818]
[1749754093450,6.3669935,157.06,157.05,27.62]
[1749754093650,6.36577757,157.09,157.05,27.62]
[1749754093855,6.36577757,157.09,157.06,19.45956818]
[1749754094809,6.36577757,157.09,157.05,47.07956818]
[1749754095570,19.45956818,157.11,157.07,19.45956818]
[1749754095746,19.45956818,157.1,157.08,27.6]
[1749754095946,54.09244151,157.14,157.09,27.6]
[1749754096166,47.72868945,157.14,157.09,27.6]
[1749754096366,19.45956818,157.13,157.09,27.6]
[1749754096745,19.45956818,157.12,157.09,27.6]
[1749754096948,19.45956818,157.1,157.09,27.6]
[1749754098386,25.82494055,157.1,157.06,19.45956818]
[1749754098679,41.73837148,157.1,157.07,27.6]
[1749754098890,22.2788033,157.1,157.07,47.05956818]
[1749754099460,41.73837148,157.1,157.07,27.6]
[1749754100487,54.08845052,157.15,157.07,47.05956818]
[1749754100659,19.45956818,157.11,157.07,47.05956818]
[1749754101580,19.45956818,157.12,157.08,19.45956818]
[1749754101758,19.45956818,157.13,157.08,19.45956818]
[1749754102571,22.2759674,157.12,157.08,19.45956818]
[1749754102772,22.2759674,157.12,157.09,19.45956818]
[1749754102976,22.2759674,157.12,157.1,27.54]
[1749754103574,41.73553558,157.12,157.1,27.54]
[1749754103773,22.2759674,157.12,157.1,27.54]
[1749754103959,41.73553558,157.12,157.1,27.54]
[1749754104464,22.2759674,157.12,157.1,27.54]
[1749754104670,41.73553558,157.12,157.1,27.54]
[1749754105483,22.27171492,157.15,157.11,19.45956818]
[1749754105661,22.27171492,157.15,157.12,19.45956818]
[1749754105862,6.36334712,157.15,157.14,19.45956818]
[1749754106258,6.36334712,157.15,157.13,27.54]
[1749754106470,6.36334712,157.15,157.13,46.99956818]
[1749754107066,6.36334712,157.15,157.14,19.45956818]
[1749754107586,22.27041665,157.16,157.14,19.45956818]
[1749754107765,6.36294222,157.16,157.15,19.45956818]
[1749754109259,15.90494174,157.19,157.15,20.96076818]
[1749754109461,6.36132315,157.2,157.18,19.45956818]
[1749754109673,22.25896717,157.24,157.19,46.93956818]
[1749754109875,22.25896717,157.24,157.21,19.45956818]
[1749754110081,22.25896717,157.24,157.22,27.48]
[1749754110288,22.25896717,157.24,157.22,46.93956818]
[1749754110461,22.25896717,157.24,157.22,27.48]
[1749754112669,41.71853535,157.24,157.22,27.48]
[1749754112873,19.45956818,157.23,157.17,19.45956818]
[1749754113073,19.45956818,157.22,157.18,27.48]
[1749754113276,51.40641273,157.2,157.19,27.48]
[1749754113672,22.26463103,157.2,157.19,27.48]
[1749754114403,6.36132315,157.2,157.19,27.48]
[1749754115266,45.04289232,157.23,157.19,27.48]
[1749754115267,6.36051392,157.22,157.19,27.48]
[1749754115984,22.26179874,157.22,157.19,27.48]
[1749754116795,51.40358044,157.22,157.19,27.48]
[1749754117380,15.90128482,157.22,157.19,27.48]
[1749754118682,6.36010939,157.23,157.19,27.48]
[1749754118888,6.36010939,157.23,157.21,29.1417817]
[1749754119084,6.36010939,157.23,157.22,29.1417817]
[1749754119486,15.89911359,157.25,157.22,29.1417817]
[1749754119682,15.89911359,157.25,157.23,27.4]
[1749754122673,15.89911359,157.25,157.23,56.5417817]
[1749754125183,6.35849176,157.27,157.24,29.1417817]
[1749754125416,6.35849176,157.27,157.25,29.1417817]
[1749754125694,6.35849176,157.27,157.26,56.4617817]
[1749754127311,15.89595328,157.28,157.26,27.32]
[1749754129195,15.89595328,157.28,157.26,56.4617817]
[1749754129885,45.03773498,157.28,157.26,27.32]
[1749754130591,29.1417817,157.27,157.2,29.1417817]
[1749754130791,29.1417817,157.25,157.21,27.28]
[1749754131015,29.1417817,157.25,157.21,56.4217817]
[1749754131207,29.1417817,157.25,157.21,29.1417817]
[1749754131416,29.1417817,157.25,157.22,27.26]
[1749754131600,6.3597049,157.24,157.22,27.26]
[1749754132423,22.25896717,157.24,157.23,27.26]
[1749754132987,51.40074887,157.24,157.19,1.6407]
[1749754133215,51.40074887,157.24,157.2,56.4017817]
[1749754133396,22.25896717,157.24,157.2,56.4017817]
[1749754134497,22.25896717,157.24,157.21,29.1417817]
[1749754134699,22.25896717,157.24,157.22,27.24]
[1749754135718,26.0,157.28,157.22,27.24]
[1749754135719,22.25472117,157.27,157.22,27.24]
[1749754136418,19.41373508,157.25,157.22,27.24]
[1749754136987,19.41373508,157.26,157.22,27.24]
[1749754137185,19.41373508,157.26,157.22,46.65373508]
[1749754137389,19.41373508,157.26,157.22,19.41373508]
[1749754137602,19.41373508,157.26,157.23,27.2]
[1749754137904,6.35930047,157.25,157.23,27.2]
[1749754138906,6.35930047,157.25,157.24,19.41373508]
[1749754139998,22.25472117,157.27,157.24,19.41373508]
[1749754141502,22.25472117,157.27,157.23,27.2]
[1749754141700,19.41373508,157.24,157.19,1.6407]
[1749754141902,54.04717999,157.27,157.06,1.5752]
[1749754141903,62.63180119,157.2,157.06,1.5752]
[1749754142123,19.41373508,157.12,157.08,19.41373508]
[1749754142318,19.41373508,157.12,157.09,27.36]
[1749754142541,19.41373508,157.1,157.06,1.5752]
[1749754142700,26.0,157.16,157.07,27.36]
[1749754142701,19.41373508,157.09,157.07,27.36]
[1749754142905,19.41373508,157.1,157.05,19.41373508]
[1749754143115,19.07613357,157.15,157.06,27.38]
[1749754143323,26.0,157.16,157.06,27.38]
[1749754143532,26.0,157.16,157.09,19.41373508]
[1749754143735,19.41373508,157.15,157.1,46.81373508]
[1749754143910,19.41373508,157.15,157.11,46.81373508]
[1749754144109,19.41373508,157.15,157.11,27.4]
[1749754144339,26.0,157.16,157.12,19.41373508]
[1749754144637,26.0,157.16,157.11,27.4]
[1749754144638,19.41373508,157.18,157.14,19.41373508]
[1749754144858,6.36,157.2,157.15,27.4]
[1749754145022,19.41373508,157.19,157.15,27.4]
[1749754145224,29.14704701,157.19,157.15,27.4]
[1749754145411,6.36,157.2,157.16,29.14704701]
[1749754145615,6.36,157.2,157.15,27.4]
[1749754145842,6.36,157.2,157.17,29.14704701]
[1749754146137,6.36,157.2,157.18,27.42]
[1749754146850,6.36,157.2,157.18,56.56704701]
[1749754147010,10.0,157.31,157.18,56.56704701]
[1749754147011,15.12763327,157.28,157.19,29.14704701]
[1749754147211,29.14704701,157.23,157.19,29.14704701]
[1749754147434,29.14704701,157.23,157.18,56.56704701]
[1749754147630,29.14704701,157.23,157.18,27.42]
[1749754148322,29.14704701,157.22,157.18,56.56704701]
[1749754149011,29.14704701,157.22,157.18,27.42]
[1749754149213,29.14704701,157.22,157.18,56.56704701]
[1749754149412,29.14704701,157.22,157.18,27.42]
[1749754149722,29.14704701,157.22,157.18,56.56704701]
[1749754149924,29.14704701,157.22,157.18,27.42]
[1749754150157,29.14704701,157.19,157.15,29.14704701]
[1749754150436,29.14704701,157.2,157.16,29.14704701]
[1749754150638,29.14704701,157.2,157.17,27.36]
[1749754150939,26.0,157.24,157.17,27.36]
[1749754150940,26.0,157.24,157.17,56.50704701]
[1749754151144,29.14704701,157.23,157.19,29.14704701]
[1749754151349,55.14704701,157.24,157.19,29.14704701]
[1749754151559,26.0,157.24,157.21,29.14704701]
[1749754151732,29.14704701,157.27,157.23,29.14704701]
[1749754151927,29.14704701,157.26,157.24,27.36]
[1749754153253,55.14704701,157.25,157.24,27.36]
[1749754154158,26.0,157.27,157.24,27.36]
[1749754154336,15.12763327,157.28,157.24,27.36]
[1749754154542,48.25472117,157.27,157.24,27.36]
[1749754154750,29.14704701,157.26,157.24,27.36]
[1749754154952,48.25472117,157.27,157.24,27.36]
[1749754155150,29.14704701,157.26,157.24,27.36]
[1749754156855,51.40459867,157.25,157.19,29.14704701]
[1749754157154,29.14704701,157.24,157.2,56.46704701]
[1749754157334,51.40459867,157.25,157.2,56.46704701]
[1749754157747,83.20110105,157.25,157.2,56.46704701]
[1749754158049,29.14704701,157.23,157.21,27.32]
[1749754158227,29.14704701,157.24,157.21,27.32]
[1749754158932,22.26038287,157.23,157.22,27.3]
[1749754159367,22.26038287,157.23,157.22,56.44704701]
[1749754159825,22.26038287,157.23,157.22,27.3]
[1749754160032,22.26038287,157.23,157.21,29.14704701]
[1749754160343,22.26038287,157.23,157.22,27.28]
[1749754161054,15.90027348,157.23,157.22,27.28]
[1749754164260,60.94354939,157.25,157.22,27.28]
[1749754165036,83.20110105,157.25,157.22,27.28]
[1749754165958,29.14704701,157.23,157.19,29.14704701]
[1749754166261,29.14704701,157.24,157.2,56.36704701]
[1749754166436,83.20110105,157.25,157.2,56.36704701]
[1749754166636,83.20110105,157.25,157.21,29.14704701]
[1749754167531,83.20110105,157.25,157.2,56.36704701]
[1749754168061,29.14704701,157.24,157.2,56.36704701]
[1749754168465,22.26038287,157.23,157.2,27.22]
[1749754169037,22.26038287,157.23,157.18,1.636]
[1749754169038,29.14704701,157.21,157.18,1.636]
[1749754169376,115.0085238,157.23,157.14,1.6644]
[1749754169535,29.14704701,157.19,157.15,56.34704701]
[1749754169733,29.14704701,157.2,157.15,27.2]
[1749754169954,29.14704701,157.19,157.14,1.6644]
[1749754170179,29.14704701,157.16,157.11,6.4181]
[1749754170346,29.14704701,157.15,157.11,6.4181]
[1749754170543,22.27313223,157.14,157.12,27.22]
[1749754170957,22.27313223,157.14,157.11,6.4181]
[1749754171254,22.27313223,157.14,157.13,27.22]
[1749754171464,22.27313223,157.14,157.13,56.36704701]
[1749754171649,22.27313223,157.14,157.13,27.22]
[1749754172333,51.43248251,157.14,157.1,30.82375028]
[1749754172537,51.43248251,157.14,157.13,27.24]
[1749754172850,83.25124285,157.14,157.13,27.24]
[1749754173353,54.09189257,157.14,157.13,27.24]
[1749754174260,22.27313223,157.14,157.13,27.24]
[1749754174759,22.27313223,157.14,157.13,56.39935028]
[1749754175860,22.27313223,157.14,157.13,27.24]
[1749754176153,22.27313223,157.14,157.13,56.39935028]
[1749754176743,15.90938017,157.14,157.13,27.24]
[1749754178850,15.90938017,157.14,157.13,56.39935028]
[1749754180449,6.36294222,157.16,157.13,56.39935028]
[1749754180660,6.36294222,157.16,157.14,29.15935028]
[1749754180840,6.36294222,157.16,157.15,27.22]
[1749754181043,15.90735556,157.16,157.15,27.22]
[1749754182775,29.15935028,157.18,157.15,27.22]
[1749754183369,22.26604745,157.19,157.16,19.42932621]
[1749754183676,22.26604745,157.19,157.12,19.42932621]
[1749754183677,22.26604745,157.19,157.17,46.62932621]
[1749754183856,22.26604745,157.19,157.18,27.24]
[1749754184745,15.90431961,157.19,157.18,27.24]
[1749754187372,54.06092983,157.23,157.18,27.24]
[1749754187672,19.42932621,157.22,157.18,27.24]
[1749754188374,19.42932621,157.21,157.18,27.24]
[1749754189490,25.79064936,157.2,157.18,27.24]
[1749754189681,25.79064936,157.2,157.14,8.1015]
[1749754189682,22.26463103,157.2,157.14,8.1015]
[1749754189869,22.26463103,157.2,157.04,165.19792264]
[1749754189870,19.42932621,157.15,157.1,8.1331]
[1749754190203,19.42932621,157.12,157.08,19.42932621]
[1749754190363,19.42932621,157.12,157.09,27.3]
[1749754190551,19.42932621,157.13,157.09,27.3]
[1749754190964,19.42932621,157.13,157.1,27.32]
[1749754191777,6.36456211,157.12,157.1,27.32]
[1749754192003,41.70529361,157.12,157.11,27.3]
[1749754192157,22.2759674,157.12,157.08,19.42932621]
[1749754192357,22.2759674,157.12,157.09,27.28]
[1749754192358,41.70529361,157.12,157.09,27.28]
[1749754192763,41.70529361,157.12,157.08,19.42932621]
[1749754193164,22.2759674,157.12,157.09,27.28]
[1749754193863,31.81747043,157.15,157.09,27.28]
[1749754194063,29.16916446,157.13,157.09,27.28]
[1749754195666,31.81747043,157.15,157.12,29.16916446]
[1749754195893,38.18081755,157.15,157.13,27.24]
[1749754196574,67.34998201,157.15,157.13,27.24]
[1749754196758,35.53251158,157.15,157.13,27.24]
[1749754196958,6.36334712,157.15,157.13,27.24]
[1749754197159,35.53251158,157.15,157.13,27.24]
[1749754197473,6.36334712,157.15,157.13,27.24]
[1749754198693,22.27029778,157.16,157.13,27.24]
[1749754198992,51.43946224,157.16,157.13,27.24]
[1749754200276,29.16916446,157.15,157.13,27.24]
[1749754200571,35.53291652,157.14,157.13,27.24]
[1749754200871,51.44229669,157.14,157.06,8.1331]
[1749754201078,29.16916446,157.12,157.07,56.38916446]
[1749754201386,29.16916446,157.11,157.06,125.80226446]
[1749754201587,29.16916446,157.12,157.07,56.38916446]
[1749754201963,29.16916446,157.12,157.08,27.22]
[1749754202165,54.09189257,157.14,157.09,27.22]
[1749754202388,29.16916446,157.11,157.07,29.16916446]
[1749754202687,22.2788033,157.1,157.08,27.22]
[1749754204104,22.2788033,157.1,157.08,56.38916446]
[1749754204302,51.44796776,157.1,157.06,90.0997]
[1749754204512,51.44796776,157.1,157.06,119.26886446]
[1749754204800,51.44796776,157.1,157.07,27.22]
[1749754206398,22.2788033,157.1,157.07,27.22]
[1749754206702,29.16916446,157.08,157.0,1.5444]
[1749754206874,19.07613357,157.09,157.0,30.71356446]
[1749754207068,85.93252704,157.1,157.05,29.16916446]
[1749754207270,22.2788033,157.1,157.07,29.16916446]
[1749754207475,22.2788033,157.1,157.09,29.16916446]
[1749754207768,6.36537237,157.1,157.09,56.40916446]
[1749754208194,6.36456211,157.12,157.09,27.24]
[1749754208708,31.81068172,157.18,157.09,27.24]
[1749754208709,29.16916446,157.16,157.11,29.16916446]
[1749754209000,57.81068172,157.18,157.07,1.5444]
[1749754209001,86.97984618,157.18,157.13,29.16916446]
[1749754209211,29.16916446,157.17,157.12,27.28]
[1749754209404,29.16916446,157.17,157.12,56.44916446]
[1749754209569,29.16916446,157.16,157.12,56.44916446]
[1749754209965,29.16916446,157.17,157.13,29.16916446]
[1749754210366,60.97984618,157.18,157.13,29.16916446]
[1749754210792,83.24731022,157.18,157.13,29.16916446]
[1749754211509,0.5,157.17,157.16,29.16916446]
[1749754211716,0.5,157.17,157.16,56.42916446]
[1749754212018,0.5,157.17,157.16,27.26]
[1749754212201,29.66916446,157.17,157.16,27.26]
[1749754212804,6.86253737,157.17,157.16,27.26]
[1749754213001,36.03170183,157.17,157.16,27.26]
[1749754213290,6.86253737,157.17,157.16,27.26]
[1749754213723,6.86253737,157.17,157.16,46.69298375]
[1749754213929,22.76888081,157.17,157.12,6.6569]
[1749754214133,22.76888081,157.17,157.13,46.71298375]
[1749754214612,22.76888081,157.17,157.14,19.43298375]
[1749754215313,22.76888081,157.17,157.15,19.43298375]
[1749754215520,22.76888081,157.17,157.16,27.28]
[1749754216226,22.26888081,157.17,157.16,27.28]
[1749754216642,15.90634344,157.17,157.16,27.28]
[1749754217210,6.36213258,157.18,157.16,27.28]
[1749754217405,6.36213258,157.18,157.16,46.71298375]
[1749754217592,6.36213258,157.18,157.17,19.43298375]
[1749754218696,6.36091851,157.21,157.17,19.43298375]
[1749754218912,6.36091851,157.21,157.2,19.43298375]
[1749754219115,6.36091851,157.21,157.2,46.67298375]
[1749754219601,6.36091851,157.21,157.2,27.24]
[1749754219822,6.36091851,157.21,157.2,46.67298375]
[1749754220727,15.90117858,157.23,157.2,46.67298375]
[1749754220902,15.90117858,157.23,157.21,19.43298375]
[1749754221305,6.35930047,157.25,157.22,19.43298375]
[1749754221606,19.43298375,157.23,157.18,19.43298375]
[1749754221809,22.25755166,157.25,157.18,19.43298375]
[1749754221810,19.43298375,157.22,157.19,27.36]
[1749754222220,54.05405404,157.25,157.19,27.36]
[1749754222457,19.43298375,157.22,157.19,27.36]
[1749754222796,6.36091851,157.21,157.19,27.36]
[1749754223925,19.43298375,157.2,157.19,27.36]
[1749754224126,6.36091851,157.21,157.19,27.36]
[1749754224336,19.43298375,157.2,157.19,27.36]
[1749754224704,41.69761478,157.2,157.16,19.43298375]
[1749754224951,19.43298375,157.19,157.14,21.02318375]
[1749754225231,19.43298375,157.19,157.15,46.77298375]
[1749754225608,41.69761478,157.2,157.16,19.43298375]
[1749754226457,22.26463103,157.2,157.16,19.43298375]
[1749754227439,41.69761478,157.2,157.16,19.43298375]
[1749754228171,41.69761478,157.2,157.15,46.77298375]
[1749754228172,19.43298375,157.19,157.15,46.77298375]
[1749754228667,41.69761478,157.2,157.15,46.77298375]
[1749754229052,19.43298375,157.19,157.15,46.77298375]
[1749754229666,22.26746404,157.18,157.15,46.77298375]
[1749754230044,22.26746404,157.18,157.16,27.32]
[1749754231676,15.90533146,157.18,157.14,1.5902]
[1749754231837,15.90533146,157.18,157.15,27.3]
[1749754232042,19.43298375,157.17,157.16,27.3]
[1749754232255,15.90533146,157.18,157.16,27.3]
[1749754232437,19.43298375,157.17,157.16,27.3]
[1749754233630,19.43298375,157.17,157.16,27.28]
[1749754233835,22.26888081,157.17,157.12,19.43298375]
[1749754234170,22.26888081,157.17,157.13,46.71298375]
[1749754234362,41.70186456,157.17,157.13,46.71298375]
[1749754234953,6.36253737,157.17,157.15,19.43298375]
[1749754235147,6.36253737,157.17,157.16,46.73298375]
[1749754235758,19.43298375,157.21,157.16,46.73298375]
[1749754235967,19.43298375,157.21,157.17,19.43298375]
[1749754236468,41.69336662,157.23,157.18,19.43298375]
[1749754236673,41.69336662,157.23,157.19,46.73298375]
[1749754236848,22.26038287,157.23,157.2,19.43298375]
[1749754237050,22.26038287,157.23,157.21,19.43298375]
[1749754237264,6.36010939,157.23,157.22,46.71298375]
[1749754237768,15.89788544,157.26,157.22,46.71298375]
[1749754237979,15.89788544,157.26,157.24,19.43298375]
[1749754238142,6.35849176,157.27,157.25,27.3]
[1749754238838,6.35849176,157.27,157.25,46.73298375]
[1749754239864,6.35849176,157.27,157.26,19.43298375]
[1749754240771,6.35849176,157.27,157.25,27.3]
[1749754240945,6.35849176,157.27,157.25,46.73298375]
[1749754241137,6.35849176,157.27,157.26,19.43298375]
[1749754242269,22.252745,157.29,157.26,19.43298375]
[1749754242452,22.252745,157.29,157.2,0.28432314]
[1749754242657,19.43298375,157.27,157.23,19.43298375]
[1749754242961,19.43298375,157.27,157.24,27.26]
[1749754243347,19.43298375,157.28,157.24,46.69298375]
[1749754244275,47.68347804,157.29,157.24,46.69298375]
[1749754244467,19.43298375,157.28,157.24,46.69298375]
[1749754244769,47.68347804,157.29,157.23,19.43298375]
[1749754245022,19.43298375,157.27,157.24,27.22]
[1749754245273,47.68347804,157.29,157.25,27.22]
[1749754245451,19.43298375,157.26,157.22,19.43298375]
[1749754245776,47.68347804,157.29,157.23,27.22]
[1749754245980,19.43298375,157.27,157.23,27.22]
[1749754246278,54.0411613,157.29,157.23,27.22]
[1749754246471,73.47414505,157.29,157.24,19.43298375]
[1749754246678,73.47414505,157.29,157.25,19.43298375]
[1749754246858,19.43298375,157.28,157.26,27.26]
[1749754247571,19.43298375,157.27,157.26,27.26]
[1749754248261,25.79147551,157.27,157.26,27.26]
[1749754248456,73.48016374,157.27,157.19,1.6581]
[1749754248653,19.43298375,157.25,157.2,46.67298375]
[1749754249303,19.43298375,157.25,157.2,19.43298375]
[1749754249590,54.04717999,157.27,157.2,19.43298375]
[1749754249893,54.04717999,157.27,157.23,19.43298375]
[1749754250071,22.25472117,157.27,157.24,46.67298375]
[1749754250464,22.25472117,157.27,157.25,19.43298375]
[1749754251077,41.68770492,157.27,157.24,27.24]
[1749754251276,19.43298375,157.25,157.24,27.24]
[1749754252189,19.43298375,157.25,157.19,1.6581]
[1749754252371,22.26038287,157.23,157.2,46.67298375]
[1749754252574,22.26038287,157.23,157.2,27.24]
[1749754253185,22.26038287,157.23,157.2,46.67298375]
[1749754253381,22.26038287,157.23,157.21,19.43298375]
[1749754253574,22.26038287,157.23,157.22,27.24]
[1749754253962,54.06092983,157.23,157.15,1.5194]
[1749754254165,19.43298375,157.22,157.17,19.43298375]
[1749754254377,22.2632148,157.21,157.18,19.43298375]
[1749754254556,22.2632148,157.21,157.19,27.24]
[1749754255699,22.2632148,157.21,157.2,27.24]
[1749754255984,6.36091851,157.21,157.2,27.24]
[1749754256194,6.36091851,157.21,157.2,46.67298375]
[1749754256376,22.26038287,157.23,157.2,46.67298375]
[1749754256768,22.26038287,157.23,157.2,27.24]
[1749754258093,22.25613632,157.26,157.2,46.67298375]
[1749754258291,22.25613632,157.26,157.21,19.43298375]
[1749754258601,19.43298375,157.25,157.21,19.43298375]
[1749754258965,19.43298375,157.25,157.2,27.24]
[1749754259173,19.43298375,157.24,157.2,46.67298375]
[1749754259381,19.43298375,157.25,157.2,46.67298375]
[1749754260473,6.3597049,157.24,157.21,19.43298375]
[1749754260679,6.3597049,157.24,157.2,46.67298375]
[1749754260680,25.79268865,157.24,157.2,46.67298375]
[1749754261098,41.69195092,157.24,157.2,46.67298375]
[1749754262401,22.25896717,157.24,157.2,46.67298375]
[1749754262776,41.69195092,157.24,157.2,46.67298375]
[1749754263771,22.25896717,157.24,157.2,46.67298375]
[1749754263974,6.3597049,157.24,157.2,27.24]
[1749754264195,6.35889609,157.26,157.23,19.43298375]
[1749754264495,6.35889609,157.26,157.24,46.63298375]
[1749754264792,41.68824224,157.27,157.24,27.2]
[1749754265103,22.25525849,157.27,157.24,27.2]
[1749754265591,22.25525849,157.27,157.24,46.63298375]
[1749754265800,6.35768326,157.29,157.26,19.43298375]
[1749754266098,6.35768326,157.29,157.27,27.22]
[1749754266271,6.35768326,157.29,157.28,27.2]
[1749754266589,41.68487516,157.29,157.28,27.2]
[1749754267273,6.35768326,157.29,157.28,27.2]
[1749754267470,6.35768326,157.29,157.28,46.63298375]
[1749754268096,6.35687496,157.31,157.28,46.63298375]
[1749754269085,22.24843348,157.32,157.28,46.63298375]
[1749754270790,22.24843348,157.32,157.29,27.16]
[1749754270997,41.68141723,157.32,157.29,27.16]
[1749754271197,22.24843348,157.32,157.29,27.16]
[1749754271897,22.24843348,157.32,157.29,46.59298375]
[1749754272393,41.68141723,157.32,157.29,27.16]
[1749754272585,19.43298375,157.31,157.29,27.16]
[1749754272783,41.68141723,157.32,157.29,27.16]
[1749754273192,22.24843348,157.32,157.29,27.16]
[1749754273407,41.68141723,157.32,157.29,27.16]
[1749754273996,22.24843348,157.32,157.29,27.16]
[1749754274503,41.68141723,157.32,157.29,27.16]
[1749754275200,22.24843348,157.32,157.29,27.16]
[1749754275405,41.68141723,157.32,157.29,27.16]
[1749754275911,22.24843348,157.32,157.29,27.16]
[1749754276086,41.68141723,157.32,157.29,27.16]
[1749754276482,22.24843348,157.32,157.29,27.16]
[1749754276677,41.68141723,157.32,157.29,27.16]
[1749754277514,19.43298375,157.3,157.22,1.6282]
[1749754277682,19.43298375,157.26,157.23,27.1]
[1749754277877,7.01820181,157.3,157.23,27.1]
[1749754278078,19.43298375,157.26,157.23,27.1]
[1749754278810,19.43298375,157.26,157.22,21.06118375]
[1749754279009,26.0,157.29,157.23,27.1]
[1749754279215,19.43298375,157.26,157.23,27.1]
[1749754279412,22.25330619,157.28,157.25,19.43298375]
[1749754279620,22.25330619,157.28,157.26,27.1]
[1749754280208,6.35808748,157.28,157.26,27.1]
[1749754280910,6.35808748,157.28,157.26,46.53298375]
[1749754281215,6.35808748,157.28,157.27,19.43298375]
[1749754281520,6.35727908,157.3,157.27,19.43298375]
[1749754282214,6.35727908,157.3,157.28,19.43298375]
[1749754282401,6.35727908,157.3,157.29,27.1]
[1749754284394,6.35727908,157.3,157.29,46.53298375]
[1749754284808,6.35606686,157.33,157.29,46.53298375]
[1749754285095,6.35606686,157.33,157.3,19.43298375]
[1749754285491,6.35606686,157.33,157.29,27.1]
[1749754285492,6.35606686,157.33,157.32,19.43298375]
[1749754285698,6.35606686,157.33,157.32,46.51298375]
[1749754285919,6.35606686,157.33,157.32,27.08]
[1749754287217,6.35606686,157.33,157.32,46.51298375]
[1749754287522,15.88816035,157.35,157.32,46.51298375]
[1749754288096,15.88816035,157.35,157.32,27.08]
[1749754288312,6.3548551,157.36,157.32,46.51298375]
[1749754288511,6.3548551,157.36,157.33,19.43298375]
[1749754289319,6.3548551,157.36,157.32,46.51298375]
[1749754289509,6.3548551,157.36,157.33,19.43298375]